bitfinex/quotes_SOLUSD_20250821
["timestamp","ask_amount","ask_price","bid_price","bid_amount"]
[1755736538696,0.76,188.45,188.44,5.33487741]
[1755736538901,0.06,188.45,188.44,4.14920905]
[1755736539297,0.06,188.45,188.44,4.43353219]
[1755736540478,0.06,188.45,188.44,0.28432314]
[1755736540903,0.06,188.45,188.44,4.43353219]
[1755736541118,0.06,188.45,188.44,0.28432314]
[1755736541279,0.06,188.45,188.44,4.43353219]
[1755736541615,0.06,188.45,188.44,9.62604704]
[1755736541914,0.06,188.45,188.44,0.28432314]
[1755736542069,0.06,188.45,188.44,4.43353219]
[1755736542569,0.06,188.45,188.44,0.28432314]
[1755736542769,0.76,188.45,188.43,0.28432314]
[1755736543004,0.06,188.45,188.44,4.43353219]
[1755736544305,0.06,188.45,188.44,0.28432314]
[1755736544486,4.90920905,188.45,188.44,5.40977711]
[1755736544691,4.90920905,188.45,188.37,0.03]
[1755736544692,9.0584181,188.45,188.37,0.03]
[1755736544927,4.14920905,188.38,188.37,5.33975845]
[1755736545201,4.14920905,188.41,188.37,4.88920905]
[1755736545409,4.84920905,188.41,188.38,26.0]
[1755736546080,0.7,188.41,188.38,26.0]
[1755736546279,4.14920905,188.42,188.38,30.14920905]
[1755736546474,0.7,188.43,188.39,4.43353219]
[1755736546705,4.14920905,188.43,188.39,4.43353219]
[1755736546905,4.84920905,188.42,188.39,4.43353219]
[1755736547115,0.7,188.41,188.39,0.28432314]
[1755736547581,0.7,188.41,188.39,0.14216157]
[1755736547778,4.84920905,188.4,188.39,26.0]
[1755736547979,4.84920905,188.4,188.37,5.2300138]
[1755736548305,4.14920905,188.38,188.37,0.03]
[1755736548682,4.84920905,188.38,188.37,0.03]
[1755736550203,0.7,188.38,188.37,0.03]
[1755736550434,4.84920905,188.38,188.37,0.03]
[1755736551587,0.7,188.38,188.37,0.03]
[1755736551790,4.84920905,188.38,188.37,0.03]
[1755736554010,0.7,188.38,188.37,0.03]
[1755736554213,4.14920905,188.38,188.37,0.03]
[1755736555818,4.86920905,188.38,188.37,0.03]
[1755736556719,22.61401211,188.38,188.37,0.03]
[1755736557692,18.46480306,188.38,188.37,0.03]
[1755736558194,55.96480306,188.38,188.37,0.03]
[1755736558519,4.14920905,188.38,188.37,0.03]
[1755736558907,4.86920905,188.38,188.37,0.03]
[1755736559324,51.09559401,188.41,188.37,0.03]
[1755736559528,4.14920905,188.38,188.37,0.03]
[1755736559900,4.86920905,188.38,188.37,0.03]
[1755736561293,37.5,188.41,188.37,4.83920905]
[1755736561518,37.5,188.41,188.39,4.14920905]
[1755736561733,37.5,188.41,188.39,4.80920905]
[1755736561932,4.14920905,188.42,188.39,0.66]
[1755736564150,0.06,188.43,188.4,0.66]
[1755736564323,0.06,188.43,188.41,4.80920905]
[1755736564634,0.06,188.43,188.42,0.66]
[1755736565724,0.06,188.43,188.42,36.4008244]
[1755736567628,0.06,188.43,188.42,38.66957097]
[1755736571830,0.06,188.43,188.42,56.41437403]
[1755736574454,0.06,188.43,188.42,93.93437403]
[1755736575645,0.06,188.45,188.43,14.02207872]
[1755736575851,0.06,188.45,188.44,4.43353219]
[1755736576227,0.06,188.45,188.44,5.09353219]
[1755736576559,0.06,188.45,188.44,42.59353219]
[1755736576927,0.06,188.45,188.44,44.71955219]
[1755736577457,0.06,188.45,188.44,58.45730777]
[1755736577635,0.06,188.45,188.44,63.7640367]
[1755736578153,0.72,188.58,188.5,0.42648471]
[1755736578359,4.14920905,188.65,188.58,26.0]
[1755736578667,4.14920905,188.62,188.59,0.28432314]
[1755736578839,4.14920905,188.65,188.61,4.14920905]
[1755736579037,0.72,188.64,188.62,4.14920905]
[1755736579352,0.72,188.66,188.63,4.14920905]
[1755736579521,0.72,188.65,188.64,9.45031167]
[1755736579846,0.72,188.68,188.64,9.45031167]
[1755736580052,0.72,188.68,188.66,4.14920905]
[1755736580254,127.1151594,188.71,188.66,4.14920905]
[1755736580255,127.8351594,188.71,188.69,26.0]
[1755736580571,127.8351594,188.71,188.7,8.72490281]
[1755736580572,127.1151594,188.71,188.7,8.72490281]
[1755736580868,61.21881064,188.71,188.7,9.38490281]
[1755736581026,34.59739725,188.71,188.7,46.92490281]
[1755736581226,2.0,188.75,188.73,26.0]
[1755736581634,2.0,188.75,188.74,4.14920905]
[1755736581834,2.0,188.75,188.74,9.73182613]
[1755736582034,2.72,188.75,188.74,5.29829394]
[1755736582439,2.0,188.75,188.74,11.85696732]
[1755736582972,2.66,188.75,188.74,11.85696732]
[1755736583343,2.66,188.75,188.74,5.29829394]
[1755736583729,2.0,188.75,188.74,5.29829394]
[1755736584032,2.0,188.75,188.74,11.85696732]
[1755736585165,2.0,188.75,188.74,12.57696732]
[1755736585469,2.0,188.75,188.74,11.85696732]
[1755736585845,2.0,188.75,188.74,5.29829394]
[1755736586543,2.0,188.75,188.74,11.85696732]
[1755736587468,9.21867338,188.75,188.72,11.85752181]
[1755736587660,7.21867338,188.74,188.72,5.29884881]
[1755736587858,0.66,188.73,188.72,5.29884881]
[1755736588256,2.0,188.75,188.72,11.85752219]
[1755736588571,2.0,188.75,188.54,26.06351296]
[1755736588572,6.55867338,188.73,188.66,5.89740328]
[1755736588746,6.55867338,188.71,188.67,11.85893309]
[1755736588947,0.66,188.71,188.68,6.55867338]
[1755736589360,2.0,188.75,188.68,6.55867338]
[1755736589361,0.66,188.7,188.69,5.29969791]
[1755736589549,7.21867338,188.7,188.66,7.30127828]
[1755736589752,0.66,188.73,188.68,6.55867338]
[1755736590066,0.66,188.72,188.69,6.55867338]
[1755736590247,0.66,188.72,188.71,6.55867338]
[1755736590445,9.21867338,188.75,188.71,6.55867338]
[1755736590660,6.55867338,188.72,188.66,36.47792861]
[1755736590861,6.55867338,188.68,188.66,5.30052533]
[1755736591071,0.66,188.67,188.66,5.30052533]
[1755736591258,0.66,188.67,188.61,7.278674]
[1755736591259,7.21867338,188.67,188.61,6.558674]
[1755736591461,6.55867338,188.64,188.62,5.30166472]
[1755736591648,7.21867338,188.63,188.62,5.30166472]
[1755736591844,7.21867338,188.63,188.59,5.30250808]
[1755736592040,7.21867338,188.63,188.59,11.86118146]
[1755736592244,7.21867338,188.62,188.59,5.30250808]
[1755736592445,7.21867338,188.61,188.59,5.30250808]
[1755736592675,0.66,188.6,188.59,5.30250808]
[1755736593245,0.66,188.6,188.58,5.30278926]
[1755736593747,7.21867338,188.6,188.58,5.30278926]
[1755736594069,13.59559401,188.69,188.58,5.30278926]
[1755736594070,37.58,188.68,188.59,7.27867338]
[1755736594372,6.55867338,188.65,188.61,6.55867338]
[1755736594572,7.21867338,188.65,188.61,6.55867338]
[1755736595069,7.21867338,188.65,188.62,5.30166472]
[1755736595470,0.14216157,188.73,188.63,6.55867338]
[1755736595665,6.55867338,188.64,188.62,5.30166472]
[1755736595975,0.66,188.64,188.62,5.30166472]
[1755736597272,7.21867338,188.66,188.62,6.55867338]
[1755736597572,0.66,188.65,188.62,6.55867338]
[1755736598771,6.55867338,188.66,188.62,6.55867338]
[1755736598949,6.55867338,188.66,188.63,5.30138366]
[1755736599149,7.21867338,188.66,188.63,5.30138366]
[1755736599360,6.55867338,188.66,188.62,6.55867338]
[1755736599567,6.55867338,188.63,188.6,5.30222693]
[1755736599786,6.55867338,188.62,188.6,5.30222693]
[1755736599996,6.55867338,188.61,188.6,5.30222693]
[1755736600291,0.66,188.62,188.6,5.30222693]
[1755736600292,7.21867338,188.62,188.6,5.30222693]
[1755736600689,0.66,188.62,188.6,5.30222693]
[1755736601066,7.21867338,188.61,188.57,32.55867338]
[1755736601270,6.55867338,188.6,188.56,11.86202509]
[1755736601774,7.21867338,188.6,188.56,11.86202509]
[1755736602172,6.55867338,188.6,188.56,11.86202509]
[1755736602473,6.55867338,188.61,188.57,6.55867338]
[1755736602677,39.73775558,188.69,188.59,6.55867338]
[1755736602678,38.24,188.65,188.59,6.55867338]
[1755736602860,6.55867338,188.64,188.59,6.55867338]
[1755736603179,6.55867338,188.63,188.6,5.30222693]
[1755736606189,0.66,188.6,188.59,0.03]
[1755736606389,7.21867338,188.6,188.59,26.03]
[1755736607293,0.66,188.6,188.59,0.03]
[1755736607482,7.21867338,188.6,188.59,0.03]
[1755736607881,0.66,188.6,188.59,5.33250808]
[1755736608084,7.21867338,188.6,188.59,5.33250808]
[1755736608398,0.66,188.62,188.59,5.33250808]
[1755736608602,0.66,188.65,188.61,26.0]
[1755736608779,6.55867338,188.64,188.62,26.0]
[1755736608982,6.55867338,188.65,188.62,26.0]
[1755736609199,0.66,188.67,188.63,5.30138366]
[1755736609200,6.55867338,188.66,188.63,5.30138366]
[1755736609367,6.55867338,188.66,188.65,26.0]
[1755736609785,7.21867338,188.67,188.65,26.0]
[1755736609981,6.55867338,188.67,188.63,11.86005704]
[1755736610196,6.55867338,188.68,188.64,6.55867338]
[1755736610390,6.55867338,188.7,188.66,6.55867338]
[1755736610596,7.21867338,188.7,188.66,6.55867338]
[1755736611187,7.21867338,188.7,188.67,5.30025971]
[1755736611383,0.06,188.71,188.69,32.55867338]
[1755736611587,0.06,188.71,188.7,7.27867338]
[1755736612500,0.06,188.71,188.7,12.57809044]
[1755736612706,0.06,188.71,188.7,19.42108696]
[1755736613896,2.06,188.75,188.73,26.0]
[1755736614096,2.06,188.75,188.74,6.55867338]
[1755736614395,2.06,188.75,188.74,7.21867338]
[1755736614704,2.06,188.75,188.74,12.51696732]
[1755736615698,2.06,188.75,188.74,5.95829394]
[1755736615897,2.06,188.75,188.74,12.51696732]
[1755736620320,0.407,188.77,188.76,26.28432314]
[1755736620611,0.347,188.77,188.75,44.19867338]
[1755736620791,0.347,188.77,188.75,6.55867338]
[1755736621387,0.347,188.77,188.76,6.55867338]
[1755736621720,142.64,188.82,188.8,0.28432314]
[1755736621906,142.64,188.82,188.79,26.0]
[1755736621907,143.34,188.82,188.79,32.55867338]
[1755736622106,149.89867338,188.82,188.79,26.0]
[1755736622307,0.7,188.81,188.77,11.8561253]
[1755736622487,142.64,188.82,188.8,6.55867338]
[1755736622684,142.64,188.82,188.81,7.21867338]
[1755736623028,142.64,188.82,188.81,14.0616699]
[1755736623316,142.64,188.82,188.81,29.9780559]
[1755736623498,1e-08,188.82,188.81,69.950505]
[1755736623812,1e-08,188.82,188.81,43.71581148]
[1755736624389,0.7,188.91,188.84,26.0]
[1755736624609,0.7,188.91,188.9,6.55867338]
[1755736624995,0.7,188.91,188.85,38.02432314]
[1755736625192,0.3317204,189.0,188.91,15.97]
[1755736625393,1e-08,189.01,188.99,13.11734676]
[1755736625626,2.0,189.13,189.0,39.35204028]
[1755736625918,0.7,189.08,189.01,32.55867338]
[1755736626400,0.7,189.08,189.01,11.84939873]
[1755736626587,38.52,189.09,189.01,11.84939873]
[1755736626588,114.97513812,189.02,189.01,11.84939873]
[1755736626788,60.16545884,189.02,189.01,27.74638673]
[1755736626995,33.0628896,189.02,189.01,34.30506011]
[1755736627208,142.64,189.12,189.04,26.0]
[1755736627407,142.64,189.12,189.06,6.55867338]
[1755736627408,181.14,189.12,189.06,6.55867338]
[1755736627609,181.14,189.12,189.1,6.55867338]
[1755736627806,0.7,189.11,189.09,6.55867338]
[1755736628002,0.7,189.1,189.06,32.55867338]
[1755736628205,142.64,189.12,189.11,26.0]
[1755736628404,142.64,189.12,189.11,44.40527442]
[1755736628607,142.64,189.12,189.11,37.84660104]
[1755736629322,142.64,189.12,189.11,32.55867338]
[1755736629516,142.64,189.12,189.11,6.55867338]
[1755736629908,143.34,189.12,189.08,26.0]
[1755736630120,38.54,189.11,189.08,31.28876652]
[1755736630301,38.54,189.11,189.1,11.84688067]
[1755736630302,38.52,189.11,189.1,11.84688067]
[1755736630501,142.64,189.12,189.1,11.84688067]
[1755736630702,142.64,189.12,189.11,6.55867338]
[1755736630997,142.64,189.12,189.11,13.11734676]
[1755736632510,142.64,189.12,189.11,11.84660104]
[1755736633047,142.64,189.12,189.11,18.40527442]
[1755736634298,116.06048209,189.12,189.11,18.40527442]
[1755736634499,116.06048209,189.12,189.11,5.28792766]
[1755736634822,116.06048209,189.12,189.11,18.40527442]
[1755736635129,116.06048209,189.12,189.11,44.40527442]
[1755736635308,116.06048209,189.12,189.11,38.13092418]
[1755736635695,116.06048209,189.12,189.11,12.13092418]
[1755736636200,116.06048209,189.12,188.99,4.18331996]
[1755736636201,161.81915547,189.12,188.99,4.18331996]
[1755736636533,116.06048209,189.12,189.0,6.55867338]
[1755736636721,38.56,189.11,189.04,26.0]
[1755736636933,38.56,189.1,189.05,10.0]
[1755736637135,0.7,189.09,189.05,10.0]
[1755736637321,0.7,189.09,189.08,26.0]
[1755736637522,39.26,189.09,189.08,32.55867338]
[1755736637929,38.58,189.09,189.08,32.55867338]
[1755736638237,154.68048209,189.12,189.09,0.28432314]
[1755736638438,154.68048209,189.12,189.09,26.28432314]
[1755736638647,0.7,189.11,189.09,26.0]
[1755736638833,39.26,189.1,189.09,26.0]
[1755736639847,116.12048209,189.12,189.09,37.84713352]
[1755736640055,116.12048209,189.12,189.11,13.11734676]
[1755736640418,116.12048209,189.12,189.11,18.40527442]
[1755736640820,116.12048209,189.12,189.11,5.28792766]
[1755736641044,116.12048209,189.12,189.11,18.40527442]
[1755736641833,116.12048209,189.12,189.11,32.42735314]
[1755736642719,89.6229792,189.12,189.11,32.42735314]
[1755736642921,33.96085237,189.12,189.11,32.42735314]
[1755736643119,2.0,189.13,189.12,14.02207872]
[1755736643344,2.0,189.13,189.12,27.13942548]
[1755736644353,38.52,189.19,189.18,26.0]
[1755736644556,39.23,189.19,189.18,25.28]
[1755736644758,39.23,189.19,189.12,5.2874056]
[1755736644964,0.71,189.18,189.16,6.55867338]
[1755736645166,38.52,189.17,189.16,6.55867338]
[1755736645327,39.23,189.17,189.16,6.55867338]
[1755736646029,39.23,189.17,189.12,6.55867338]
[1755736646230,0.71,189.16,189.15,6.55867338]
[1755736646454,0.71,189.16,189.1,5.57229968]
[1755736646637,0.71,189.16,189.15,26.0]
[1755736647058,39.19,189.16,189.15,32.55867338]
[1755736648432,0.71,189.2,189.15,32.55867338]
[1755736648633,0.71,189.2,189.19,6.55867338]
[1755736648829,38.46,189.2,189.19,6.55867338]
[1755736649037,142.64,189.22,189.19,6.55867338]
[1755736649275,38.46,189.21,189.2,6.55867338]
[1755736649446,0.71,189.21,189.2,6.55867338]
[1755736649754,39.17,189.21,189.16,26.0]
[1755736649960,38.46,189.21,189.2,6.55867338]
[1755736650565,39.17,189.21,189.2,6.55867338]
[1755736650728,39.15,189.21,189.2,6.55867338]
[1755736651862,39.13,189.21,189.2,6.55867338]
[1755736652241,39.13,189.21,189.19,5.2856675]
[1755736652440,39.13,189.21,189.2,6.55867338]
[1755736654137,0.71,189.21,189.2,6.55867338]
[1755736654352,39.11,189.21,189.2,6.55867338]
[1755736654557,142.64,189.22,189.2,6.55867338]
[1755736654865,39.09,189.21,189.2,6.55867338]
[1755736655636,142.64,189.22,189.2,37.84393063]
[1755736655835,142.64,189.22,189.2,31.28525725]
[1755736655836,38.36,189.21,189.2,31.28525725]
[1755736656037,142.64,189.22,189.2,53.72661063]
[1755736656237,38.36,189.21,189.2,47.16793725]
[1755736656559,143.35,189.22,189.2,47.16793725]
[1755736656863,38.36,189.21,189.2,47.16793725]
[1755736657042,142.64,189.22,189.2,47.16793725]
[1755736657242,38.34,189.21,189.2,47.16793725]
[1755736657435,38.34,189.21,189.2,53.72661063]
[1755736658632,142.64,189.22,189.2,53.72661063]
[1755736658858,142.64,189.22,189.21,6.55867338]
[1755736660552,142.64,189.22,189.2,41.88268]
[1755736660738,142.64,189.22,189.21,6.55867338]
[1755736660739,180.92,189.22,189.21,6.55867338]
[1755736660942,181.63,189.22,189.2,41.88268]
[1755736661136,0.71,189.21,189.2,15.88268]
[1755736661367,0.71,189.21,189.18,6.55867338]
[1755736661675,38.28,189.2,189.18,6.55867338]
[1755736661837,38.28,189.2,189.19,6.55867338]
[1755736662478,38.99,189.2,189.19,6.55867338]
[1755736664178,38.99,189.2,189.17,15.88268]
[1755736664343,38.28,189.2,189.19,6.55867338]
[1755736664846,142.64,189.22,189.19,39.11734676]
[1755736665052,142.64,189.22,189.21,6.55867338]
[1755736667152,181.0,189.22,189.21,6.55867338]
[1755736667574,142.64,189.22,189.21,6.55867338]
[1755736667778,180.98,189.22,189.21,6.55867338]
[1755736668253,142.64,189.22,189.21,13.11734676]
[1755736669449,142.64,189.22,189.21,34.28263768]
[1755736672470,142.64,189.22,189.21,60.28263768]
[1755736673261,142.64,189.22,189.21,60.96263768]
[1755736673892,142.64,189.22,189.21,60.28263768]
[1755736675896,143.3,189.22,189.21,54.99750476]
[1755736676792,142.64,189.22,189.21,54.99750476]
[1755736677209,143.3,189.22,189.21,54.99750476]
[1755736677908,142.64,189.22,189.21,60.28263768]
[1755736678399,142.64,189.22,189.21,61.65715576]
[1755736678905,62.15729224,189.22,189.21,36.6214789]
[1755736679198,62.15729224,189.22,189.21,35.65715576]
[1755736679795,0.72,189.24,189.23,26.0]
[1755736680100,0.72,189.24,189.23,33.24593242]
[1755736680400,0.72,189.24,189.23,40.49186484]
[1755736680982,0.06,189.24,189.23,40.49186484]
[1755736681189,0.72,189.24,189.23,40.49186484]
[1755736681386,0.06,189.24,189.23,45.77643916]
[1755736681589,0.72,189.24,189.23,40.49186484]
[1755736682501,38.88,189.24,189.23,40.49186484]
[1755736682802,0.72,189.24,189.23,40.49186484]
[1755736683128,0.72,189.24,189.21,15.880158]
[1755736683414,0.72,189.24,189.23,7.24593242]
[1755736683981,38.86,189.24,189.23,7.24593242]
[1755736684182,0.72,189.24,189.23,7.24593242]
[1755736684622,0.72,189.24,189.2,7.24593242]
[1755736684623,38.86,189.24,189.2,7.24593242]
[1755736684779,38.2,189.24,189.23,7.24593242]
[1755736685204,38.2,189.24,189.22,7.24593242]
[1755736685407,0.66,189.23,189.22,7.24593242]
[1755736686014,38.78,189.23,189.22,7.24593242]
[1755736686691,0.66,189.23,189.22,7.24593242]
[1755736686894,38.12,189.23,189.22,7.24593242]
[1755736687314,38.12,189.23,189.22,12.53074017]
[1755736688017,0.06,189.24,189.22,12.53074017]
[1755736688225,38.18,189.24,189.23,7.24593242]
[1755736688999,38.84,189.24,189.23,7.24593242]
[1755736689406,38.84,189.24,189.22,7.24593242]
[1755736689611,0.66,189.23,189.22,7.24593242]
[1755736689993,0.66,189.23,189.18,26.03]
[1755736690427,38.18,189.24,189.22,7.24593242]
[1755736690723,38.18,189.24,189.23,7.24593242]
[1755736690724,0.06,189.24,189.23,7.24593242]
[1755736690920,38.18,189.24,189.23,7.24593242]
[1755736691101,0.72,189.24,189.23,7.24593242]
[1755736691521,38.84,189.24,189.23,7.24593242]
[1755736691993,38.82,189.24,189.23,7.24593242]
[1755736692194,0.06,189.24,189.23,7.24593242]
[1755736692422,0.72,189.24,189.23,7.24593242]
[1755736692722,0.06,189.24,189.23,12.53050674]
[1755736693403,0.06,189.24,189.23,7.24593242]
[1755736693907,0.72,189.24,189.23,7.24593242]
[1755736694622,0.06,189.24,189.23,7.24593242]
[1755736694818,0.72,189.24,189.2,49.12777142]
[1755736695120,0.66,189.23,189.2,23.12777142]
[1755736695306,0.66,189.22,189.18,0.03]
[1755736695504,38.08,189.21,189.18,0.03]
[1755736695718,38.08,189.21,189.2,26.0]
[1755736696019,0.06,189.24,189.2,26.0]
[1755736696020,38.14,189.24,189.21,26.0]
[1755736696198,0.06,189.24,189.23,7.24593242]
[1755736696399,38.8,189.24,189.23,7.24593242]
[1755736697197,38.14,189.24,189.23,7.24593242]
[1755736697404,0.06,189.24,189.23,7.24593242]
[1755736698801,0.06,189.28,189.27,26.28432314]
[1755736699027,1.14676284,189.4,189.38,26.0]
[1755736699739,62.15729224,189.43,189.42,44.3665441]
[1755736700096,62.81729224,189.43,189.42,16.42260354]
[1755736700302,62.81729224,189.43,189.42,3.15467926]
[1755736700593,69.56322466,189.43,189.37,7.24593242]
[1755736700826,7.24593242,189.4,189.3,7.24593242]
[1755736701011,39.32,189.42,189.33,7.24593242]
[1755736701012,0.66,189.39,189.33,7.24593242]
[1755736701203,0.66,189.39,189.38,7.24593242]
[1755736701397,39.4,189.39,189.38,7.24593242]
[1755736701933,38.74,189.39,189.38,7.24593242]
[1755736702312,38.74,189.39,189.38,11.57585664]
[1755736702726,38.76,189.41,189.4,26.0]
[1755736702933,38.76,189.41,189.4,37.57585664]
[1755736703440,38.76,189.41,189.4,11.57585664]
[1755736703943,39.44,189.41,189.4,11.57585664]
[1755736704115,61.65729224,189.43,189.42,26.0]
[1755736704440,61.65729224,189.43,189.42,37.57585664]
[1755736704803,60.98229224,189.43,189.42,37.57585664]
[1755736705002,60.98229224,189.43,189.42,49.15171328]
[1755736705312,61.66229224,189.43,189.37,15.868399]
[1755736705514,12.25585664,189.42,189.37,15.868399]
[1755736705703,39.48,189.41,189.35,11.57585664]
[1755736705908,11.57585664,189.39,189.31,15.868399]
[1755736706116,39.52,189.38,189.34,11.57585664]
[1755736706321,0.68,189.37,189.35,11.57585664]
[1755736706505,0.68,189.36,189.34,11.57585664]
[1755736706732,39.5,189.36,189.34,11.57585664]
[1755736706903,39.5,189.36,189.34,37.57585664]
[1755736707535,12.25585664,189.35,189.3,5.35717431]
[1755736707733,12.25585664,189.34,189.3,11.57585664]
[1755736708036,39.48,189.33,189.3,11.57585664]
[1755736708237,0.68,189.32,189.3,11.57585664]
[1755736708618,0.68,189.32,189.25,21.81804884]
[1755736708834,0.68,189.32,189.25,21.15993234]
[1755736709148,0.68,189.32,189.29,11.57585664]
[1755736709505,0.68,189.31,189.29,11.57585664]
[1755736709839,39.48,189.3,189.27,11.57585664]
[1755736710006,39.46,189.29,189.27,11.57585664]
[1755736710205,38.78,189.28,189.27,11.57585664]
[1755736710434,39.46,189.28,189.26,11.57585664]
[1755736710738,0.68,189.27,189.25,11.57585664]
[1755736710937,0.68,189.26,189.22,0.03]
[1755736711245,0.68,189.26,189.25,11.57585664]
[1755736711425,39.46,189.26,189.24,11.57585664]
[1755736711812,39.46,189.26,189.25,11.57585664]
[1755736712414,39.46,189.26,189.25,15.42914849]
[1755736712812,39.46,189.26,189.25,3.85305274]
[1755736713139,39.46,189.26,189.24,11.57585664]
[1755736713314,39.46,189.26,189.25,3.85317319]
[1755736713944,51.03585664,189.26,189.25,3.85317319]
[1755736714240,62.61171328,189.26,189.22,0.03]
[1755736714455,11.57585664,189.23,189.22,0.03]
[1755736714747,11.57585664,189.21,189.2,0.03]
[1755736714934,0.68,189.22,189.2,11.60585664]
[1755736715141,38.76,189.21,189.2,0.03]
[1755736715520,39.44,189.21,189.2,0.03]
[1755736715738,0.68,189.21,189.2,0.03]
[1755736715963,39.44,189.21,189.2,0.03]
[1755736716709,51.01585664,189.21,189.2,0.03]
[1755736719762,39.44,189.21,189.2,0.03]
[1755736720224,51.01585664,189.21,189.2,0.03]
[1755736721243,0.68,189.21,189.2,0.03]
[1755736721428,50.95585664,189.21,189.2,0.03]
[1755736721942,11.57585664,189.24,189.2,11.60585664]
[1755736721943,0.68,189.24,189.2,11.60585664]
[1755736722120,39.38,189.23,189.2,11.60585664]
[1755736722828,0.68,189.27,189.22,11.57585664]
[1755736723025,38.7,189.26,189.25,11.57585664]
[1755736724517,38.7,189.27,189.25,12.28585664]
[1755736724718,38.7,189.26,189.25,0.71]
[1755736725443,38.7,189.26,189.25,5.99401585]
[1755736725740,38.78,189.33,189.25,5.99401585]
[1755736725741,38.1,189.33,189.25,17.56987249]
[1755736725938,38.1,189.33,189.32,11.57585664]
[1755736726120,76.8,189.33,189.32,11.57585664]
[1755736726316,38.7,189.33,189.32,11.57585664]
[1755736726649,38.7,189.33,189.32,12.28585664]
[1755736726821,38.7,189.33,189.32,11.57585664]
[1755736727147,50.95585664,189.33,189.29,11.57585664]
[1755736727348,39.38,189.33,189.29,11.57585664]
[1755736727855,0.68,189.32,189.28,11.57585664]
[1755736728028,50.27585664,189.33,189.15,10.0]
[1755736728029,11.57585664,189.29,189.24,37.575857]
[1755736728225,38.7,189.28,189.2,0.74]
[1755736728425,50.27585664,189.28,189.24,11.57585664]
[1755736728634,39.38,189.28,189.25,11.57585664]
[1755736729148,38.7,189.28,189.26,11.57585664]
[1755736729324,38.7,189.28,189.27,11.57585664]
[1755736730058,38.7,189.28,189.26,11.57585664]
[1755736730215,38.7,189.28,189.25,26.0]
[1755736730216,10.14216157,189.42,189.3,26.0]
[1755736730420,11.57585664,189.4,189.35,11.57585664]
[1755736730669,0.68,189.39,189.35,11.57585664]
[1755736730842,39.4,189.38,189.36,11.57585664]
[1755736731154,0.68,189.42,189.37,11.57585664]
[1755736731320,38.72,189.41,189.4,11.57585664]
[1755736731641,38.72,189.41,189.36,11.57585664]
[1755736731642,50.97585664,189.41,189.36,11.57585664]
[1755736731848,0.68,189.4,189.36,11.57585664]
[1755736732047,0.68,189.39,189.36,11.57585664]
[1755736732252,0.74,189.44,189.38,11.57585664]
[1755736732422,38.72,189.42,189.4,11.57585664]
[1755736732750,38.72,189.42,189.3,16.85843532]
[1755736732751,39.4,189.42,189.3,16.85843532]
[1755736732929,12.25585664,189.41,189.36,11.57585664]
[1755736733136,38.72,189.42,189.38,11.57585664]
[1755736733441,38.72,189.42,189.39,11.57585664]
[1755736733642,38.72,189.42,189.38,11.57585664]
[1755736733841,50.97585664,189.42,189.38,11.57585664]
[1755736734522,39.4,189.42,189.39,11.57585664]
[1755736734722,38.7,189.41,189.39,11.57585664]
[1755736735530,12.25585664,189.4,189.32,0.66]
[1755736735734,11.57585664,189.38,189.34,11.57585664]
[1755736735933,50.25585664,189.37,189.33,11.57585664]
[1755736736232,39.36,189.36,189.31,11.57585664]
[1755736736430,38.7,189.35,189.31,11.57585664]
[1755736736953,38.7,189.35,189.32,11.57585664]
[1755736737138,50.27585664,189.35,189.31,11.57585664]
[1755736737339,11.57585664,189.32,189.27,11.57585664]
[1755736737531,50.93585664,189.31,189.27,11.57585664]
[1755736737855,12.25585664,189.3,189.26,11.57585664]
[1755736738056,12.25585664,189.29,189.25,11.57585664]
[1755736738228,39.36,189.28,189.25,11.57585664]